bitfinex/quotes_SOLUSD_20250417
["timestamp","ask_amount","ask_price","bid_price","bid_amount"]
[1744912844058,25.85888436,135.35,135.31,34.2303091]
[1744912845357,18.3303091,135.33,135.28,101.2303091]
[1744912845659,18.3303091,135.32,135.28,101.2303091]
[1744912845846,18.3303091,135.33,135.28,101.2303091]
[1744912846460,18.3303091,135.33,135.29,18.3303091]
[1744912846658,18.3303091,135.31,135.27,15.88]
[1744912846967,18.3303091,135.31,135.27,60.2103091]
[1744912847548,7.3915293,135.29,135.27,41.88]
[1744912847863,7.3915293,135.29,135.28,18.3303091]
[1744912848064,7.39043677,135.31,135.28,18.3303091]
[1744912848243,7.39014098,135.32,135.3,18.3303091]
[1744912848567,18.47065756,135.35,135.31,18.3303091]
[1744912848754,18.47065756,135.35,135.32,18.3303091]
[1744912849970,25.85891023,135.35,135.32,18.3303091]
[1744912850667,7.38825267,135.35,135.33,18.3303091]
[1744912850849,0.063,135.37,135.34,18.3303091]
[1744912851163,25.91822437,135.37,135.32,15.88]
[1744912851369,25.91822437,135.37,135.34,11.72493099]
[1744912851570,0.063,135.37,135.36,11.72493099]
[1744912853175,0.063,135.37,135.36,18.31712824]
[1744912855859,0.063,135.37,135.36,26.0]
[1744912856055,0.063,135.37,135.36,44.31712824]
[1744912856678,0.063,135.37,135.36,26.0]
[1744912857174,18.38012824,135.37,135.34,82.9]
[1744912858073,7.38770685,135.36,135.34,82.9]
[1744912858272,18.31712824,135.35,135.28,15.88]
[1744912858574,18.31712824,135.31,135.27,82.93]
[1744912858754,62.79550825,135.36,135.27,0.03]
[1744912858755,18.31712824,135.3,135.27,0.03]
[1744912858956,18.31712824,135.29,135.27,0.03]
[1744912859459,18.64964886,135.34,135.27,0.03]
[1744912859658,18.31712824,135.31,135.27,0.03]
[1744912859857,18.31712824,135.3,135.27,0.03]
[1744912860163,7.3915293,135.29,135.27,0.03]
[1744912860354,25.70830332,135.3,135.27,0.03]
[1744912860556,34.35152696,135.35,135.28,18.31712824]
[1744912860755,18.31712824,135.33,135.29,18.31712824]
[1744912861755,18.31712824,135.31,135.27,18.34712824]
[1744912861952,25.70701886,135.32,135.27,18.34712824]
[1744912862576,18.31712824,135.31,135.27,18.34712824]
[1744912862777,18.31712824,135.3,135.27,0.03]
[1744912862969,18.31712824,135.28,135.27,0.03]
[1744912863966,25.70920393,135.28,135.27,0.03]
[1744912864380,7.39207569,135.28,135.27,0.03]
[1744912864684,7.39176042,135.29,135.27,0.03]
[1744912865081,18.47359264,135.33,135.28,18.31712824]
[1744912865391,21.9926,135.35,135.3,18.31712824]
[1744912865684,7.38879858,135.34,135.31,18.31712824]
[1744912866973,7.38879858,135.34,135.32,18.31712824]
[1744912867172,7.38848261,135.35,135.32,18.31712824]
[1744912868261,7.4507047,135.37,135.34,18.31712824]
[1744912868463,0.063,135.37,135.35,18.31712824]
[1744912868677,0.063,135.37,135.36,18.31712824]
[1744912869866,0.063,135.37,135.36,18.60145138]
[1744912870065,0.063,135.37,135.36,44.78096866]
[1744912870370,0.063,135.37,135.36,127.68096866]
[1744912871881,0.063,135.37,135.36,145.9980969]
[1744912872187,0.063,135.38,135.37,6.80952314]
[1744912872367,0.063,135.38,135.37,126.34377962]
[1744912872685,0.063,135.38,135.37,101.64361295]
[1744912872870,0.063,135.38,135.37,120.29326181]
[1744912873583,0.063,135.38,135.37,101.50145138]
[1744912873987,0.063,135.38,135.35,18.31712824]
[1744912874188,18.38012824,135.38,135.34,18.31712824]
[1744912874490,18.31712824,135.35,135.32,15.86]
[1744912874982,6.2808,135.38,135.33,18.31712824]
[1744912875187,35.59680896,135.38,135.34,29.31600896]
[1744912875559,35.59680896,135.38,135.33,29.31600896]
[1744912875761,7.38716111,135.37,135.33,29.31600896]
[1744912875964,7.38716111,135.37,135.32,15.86]
[1744912876189,7.38716111,135.37,135.32,98.76]
[1744912876492,36.70317007,135.37,135.33,29.31600896]
[1744912876990,55.17107285,135.37,135.32,128.07600896]
[1744912877197,29.31600896,135.36,135.32,98.76]
[1744912877900,29.31600896,135.34,135.32,15.86]
[1744912878069,29.31600896,135.34,135.3,29.31600896]
[1744912878577,29.31600896,135.34,135.29,138.21600896]
[1744912879195,29.31600896,135.33,135.29,82.9]
[1744912879677,29.31600896,135.32,135.29,82.9]
[1744912879999,29.31600896,135.34,135.29,112.21600896]
[1744912880366,47.78664065,135.35,135.3,29.31600896]
[1744912881391,18.47063169,135.35,135.31,29.31600896]
[1744912881687,7.38770685,135.36,135.32,29.31600896]
[1744912882377,55.17298294,135.36,135.32,29.31600896]
[1744912883192,55.17298294,135.36,135.31,29.31600896]
[1744912883517,55.17298294,135.36,135.29,82.9]
[1744912883518,29.31600896,135.34,135.29,82.9]
[1744912883675,29.31600896,135.33,135.29,82.9]
[1744912883992,29.31600896,135.32,135.28,45.17600896]
[1744912884170,29.31600896,135.32,135.28,29.31600896]
[1744912884371,7.39043677,135.31,135.28,29.31600896]
[1744912885027,55.18253766,135.31,135.27,138.24600896]
[1744912885314,29.31600896,135.3,135.27,0.03]
[1744912885713,55.18253766,135.31,135.27,0.03]
[1744912885901,55.18253766,135.31,135.27,29.34600896]
[1744912886522,55.18253766,135.31,135.27,0.03]
[1744912887515,25.8665287,135.31,135.27,29.34600896]
[1744912887910,55.18253766,135.31,135.27,29.34600896]
[1744912888424,55.18253766,135.31,135.27,0.03]
[1744912888591,29.31600896,135.3,135.27,0.03]
[1744912888791,29.31600896,135.29,135.27,0.03]
[1744912889195,32.3452287,135.31,135.27,0.03]
[1744912889524,29.31600896,135.3,135.27,0.03]
[1744912891032,7.3915293,135.29,135.27,29.34600896]
[1744912891395,7.3915293,135.29,135.27,0.03]
[1744912891719,7.3915293,135.29,135.28,29.31600896]
[1744912892099,7.3915293,135.29,135.27,29.34600896]
[1744912893115,55.18444946,135.3,135.27,0.03]
[1744912895224,36.82259536,135.3,135.27,0.03]
[1744912897425,44.21357836,135.3,135.27,0.03]
[1744912898720,18.34513786,135.28,135.27,0.03]
[1744912898925,18.34513786,135.28,135.25,1e-08]
[1744912899114,18.34513786,135.27,135.25,1e-08]
[1744912899722,18.34513786,135.26,135.25,1e-08]
[1744912900211,18.34513786,135.27,135.25,1e-08]
[1744912900410,7.39316871,135.26,135.25,1e-08]
[1744912901928,25.73830657,135.26,135.25,1e-08]
[1744912902114,27.34750657,135.26,135.25,1e-08]
[1744912902304,45.99715543,135.26,135.25,1e-08]
[1744912903418,45.99715543,135.26,135.22,0.03]
[1744912903419,18.64964886,135.25,135.22,0.03]
[1744912903621,18.34513786,135.23,135.22,1e-08]
[1744912905130,18.34513786,135.24,135.22,1e-08]
[1744912905516,7.39480884,135.23,135.22,1e-08]
[1744912906041,25.7399467,135.23,135.22,1e-08]
[1744912912135,44.38959556,135.23,135.22,1e-08]
[1744912912738,70.38959556,135.23,135.21,1e-08]
[1744912913037,18.34513786,135.22,135.21,1e-08]
[1744912913935,44.22888286,135.22,135.19,0.03]
[1744912914234,18.34513786,135.2,135.18,0.03]
[1744912914436,18.34513786,135.19,135.18,0.03]
[1744912915242,18.34513786,135.19,135.16,0.03]
[1744912915420,18.34513786,135.17,135.16,0.03]
[1744912915820,18.34513786,135.18,135.16,0.03]
[1744912916021,7.39809129,135.17,135.16,0.03]
[1744912918845,25.74322915,135.17,135.16,0.03]
[1744912919343,44.23845738,135.17,135.13,0.03]
[1744912919531,18.34513786,135.14,135.13,0.03]
[1744912920318,44.24420548,135.14,135.11,0.03]
[1744912920519,18.34513786,135.13,135.11,0.03]
[1744912920743,25.89906762,135.14,135.11,18.37513786]
[1744912920922,25.89906762,135.14,135.13,18.34513786]
[1744912920923,7.3997336,135.14,135.13,18.34513786]
[1744912921129,7.3997336,135.14,135.11,0.03]
[1744912921442,7.39943047,135.15,135.12,18.34513786]
[1744912922241,25.89739569,135.15,135.11,0.03]
[1744912922450,18.34513786,135.12,135.11,0.03]
[1744912923545,36.99478672,135.12,135.11,1e-08]
[1744912924057,36.99478672,135.12,135.08,1e-08]
[1744912924058,1.5405,135.1,135.08,1e-08]
[1744912924351,44.39725914,135.09,135.08,1e-08]
[1744912924562,25.74761028,135.09,135.08,1e-08]
[1744912924740,44.82374385,135.09,135.08,1e-08]
[1744912925861,44.39725914,135.09,135.08,1e-08]
[1744912926160,44.82374385,135.09,135.08,1e-08]
[1744912926331,51.05634385,135.09,135.08,1e-08]
[1744912926850,51.05634385,135.09,134.97,1.5316]
[1744912926851,44.64964886,135.05,134.97,1.5316]
[1744912927153,18.34513786,135.03,134.99,18.34513786]
[1744912927352,18.34513786,135.04,135.0,18.34513786]
[1744912927562,18.34513786,135.05,135.01,18.34513786]
[1744912927754,26.0,135.06,135.03,18.34513786]
[1744912928055,18.34513786,135.07,135.02,18.34513786]
[1744912928247,18.34513786,135.06,135.02,18.34513786]
[1744912928673,7.40466493,135.05,135.02,18.34513786]
[1744912929240,25.91632727,135.05,135.0,26.0]
[1744912929437,18.34513786,135.03,134.99,18.34513786]
[1744912929731,18.34513786,135.04,135.0,18.34513786]
[1744912930145,18.34513786,135.02,134.99,26.0]
[1744912930328,18.34513786,135.02,134.98,18.34513786]
[1744912930527,18.34513786,135.02,134.97,1.5316]
[1744912930528,7.40685875,135.01,134.97,1.5316]
[1744912930727,7.40685875,135.01,134.98,18.34513786]
[1744912931132,7.40685875,135.01,135.0,18.34513786]
[1744912931335,18.51293576,135.05,135.0,18.34513786]
[1744912931336,7.40521327,135.04,135.0,18.34513786]
[1744912931646,25.75035113,135.04,135.0,18.34513786]
[1744912932043,44.2633843,135.04,135.0,18.34513786]
[1744912933847,18.34513786,135.03,134.99,18.34513786]
[1744912934054,18.34513786,135.03,134.98,26.0]
[1744912934247,18.34513786,135.02,134.98,44.34513786]
[1744912934452,18.34513786,135.03,134.98,44.34513786]
[1744912934839,7.40631017,135.02,134.98,18.34513786]
[1744912935029,25.75144803,135.02,134.98,18.34513786]
[1744912935235,44.26722347,135.02,134.98,18.34513786]
[1744912935857,44.26722347,135.02,134.97,1.5316]
[1744912936036,44.26722347,135.02,134.98,18.34513786]
[1744912936361,7.40631017,135.02,134.99,18.34513786]
[1744912936751,7.40631017,135.02,134.98,18.34513786]
[1744912936941,18.34513786,135.01,134.97,19.87673786]
[1744912937341,44.26722347,135.02,134.98,18.34513786]
[1744912937949,18.34513786,135.01,134.96,115.1154]
[1744912938157,18.34513786,135.01,134.97,18.34513786]
[1744912938454,25.92208561,135.02,134.97,18.34513786]
[1744912938657,18.34513786,135.01,134.96,89.1154]
[1744912938865,18.34513786,135.01,134.97,18.34513786]
[1744912939056,18.51577544,135.02,134.98,18.34513786]
[1744912939256,36.8609133,135.02,134.98,18.34513786]
[1744912939562,7.40576168,135.03,135.0,18.34513786]
[1744912939763,1.5496,135.08,135.02,18.34513786]
[1744912939942,7.40356852,135.07,135.04,18.34513786]
[1744912940542,7.40356852,135.07,135.06,18.34513786]
[1744912940739,25.90702575,135.1,135.06,18.34513786]
[1744912940951,44.25216361,135.1,135.06,18.34513786]
[1744912942056,18.34513786,135.09,135.05,18.34513786]
[1744912942238,44.25216361,135.1,135.03,125.78]
[1744912942442,25.90702575,135.1,135.06,18.34513786]
[1744912942643,44.25216361,135.1,135.06,18.34513786]
[1744912943180,18.34513786,135.09,135.05,18.34513786]
[1744912944567,7.40302043,135.08,135.05,18.34513786]
[1744912945875,25.91057151,135.08,135.02,26.0]
[1744912946174,18.34513786,135.06,135.02,44.34513786]
[1744912946472,18.34513786,135.06,135.01,101.529461]
[1744912946771,18.34513786,135.06,135.01,83.18432314]
[1744912946956,18.34513786,135.06,135.01,101.529461]
[1744912947155,18.34513786,135.04,135.01,82.9]
[1744912947351,18.34513786,135.04,135.0,62.79363786]
[1744912947551,7.40576168,135.03,135.0,36.79363786]
[1744912948261,7.40356852,135.07,135.02,18.34513786]
[1744912948587,7.40356852,135.07,135.03,18.34513786]
[1744912948873,25.91248982,135.07,135.04,18.34513786]
[1744912949252,44.25762768,135.07,135.03,18.34513786]
[1744912949469,44.25762768,135.07,135.02,18.34513786]
[1744912949668,7.40466493,135.05,135.01,35.22513786]
[1744912949852,7.40466493,135.05,135.02,18.34513786]
[1744912951670,25.9144084,135.06,135.02,18.34513786]
[1744912952462,44.25954626,135.06,135.02,18.34513786]
[1744912952757,25.9144084,135.06,135.02,18.34513786]
[1744912953374,44.25954626,135.06,135.02,18.34513786]
[1744912954074,44.25954626,135.06,135.01,16.88]
[1744912954274,44.25954626,135.06,135.02,18.34513786]
[1744912955169,25.9144084,135.06,135.02,18.34513786]
[1744912955374,25.9144084,135.06,135.03,18.34513786]
[1744912955554,25.9144084,135.06,135.02,18.34513786]
[1744912955754,25.9144084,135.06,135.03,18.34513786]
[1744912956159,25.9144084,135.06,135.02,18.34513786]
[1744912958157,44.25954626,135.06,135.01,16.88]
[1744912958347,51.9144084,135.06,134.98,82.9]
[1744912958554,18.34513786,135.02,134.98,18.34513786]
[1744912958766,18.34513786,135.02,134.97,18.34513786]
[1744912958976,18.34513786,135.01,134.97,18.34513786]
[1744912959179,18.34513786,135.02,134.97,18.34513786]
[1744912959978,7.40685875,135.01,134.98,18.34513786]
[1744912960194,25.75199661,135.01,134.96,133.8246]
[1744912960363,44.26914348,135.01,134.97,18.34513786]
[1744912960561,18.34513786,135.0,134.96,127.5134]
[1744912960761,18.34513786,135.0,134.96,17.04]
[1744912960969,18.34513786,135.0,134.96,18.34513786]
[1744912961782,18.34513786,135.0,134.94,0.03]
[1744912961783,7.40685875,135.01,134.97,18.34513786]
[1744912962089,25.75199661,135.01,134.97,18.34513786]
[1744912962662,7.40685875,135.01,134.97,18.34513786]
[1744912963369,25.75199661,135.01,134.97,18.34513786]
[1744912963670,7.40685875,135.01,134.97,18.34513786]
[1744912964069,7.40685875,135.01,134.99,18.34513786]
[1744912964261,7.40685875,135.01,135.0,18.34513786]
[1744912964787,7.40685875,135.01,134.99,18.34513786]
[1744912965281,7.40576168,135.03,135.0,18.34513786]
[1744912965493,7.40576168,135.03,134.99,18.34513786]
[1744912965986,18.34513786,135.02,134.98,18.34513786]
[1744912966484,7.40576168,135.03,135.0,18.34513786]
[1744912966990,7.40466493,135.05,135.02,18.34513786]
[1744912967693,7.40466493,135.05,135.01,18.34513786]
[1744912968187,7.40466493,135.05,135.0,0.28432314]
[1744912968397,18.34513786,135.04,134.99,110.5569]
[1744912968697,18.34513786,135.04,134.99,127.24513786]
[1744912968912,18.34513786,135.03,134.99,127.24513786]
[1744912969287,7.40631017,135.02,134.99,127.24513786]
[1744912969979,7.40631017,135.02,135.0,18.34513786]
[1744912970381,7.40631017,135.02,134.99,108.9]
[1744912970586,7.40631017,135.02,135.0,18.34513786]
[1744912970893,55.66834147,135.07,135.01,18.34513786]
[1744912970894,7.40521327,135.04,135.01,18.34513786]
[1744912971289,7.40466493,135.05,135.01,18.34513786]
[1744912971869,25.74980279,135.05,135.0,18.629461]
[1744912972072,7.40466493,135.05,135.01,18.34513786]
[1744912972672,44.26146513,135.05,135.0,18.629461]
[1744912972877,44.26146513,135.05,135.0,101.529461]
[1744912973386,18.34513786,135.01,134.96,90.8263]
[1744912973604,1.58,135.04,134.98,18.34513786]
[1744912973788,18.34513786,135.03,134.99,18.34513786]
[1744912973992,1.58,135.04,135.0,18.34513786]
[1744912974184,44.26146513,135.05,135.0,18.34513786]
[1744912975606,25.91632727,135.05,135.01,18.34513786]
[1744912976599,7.40466493,135.05,135.03,18.34513786]
[1744912976976,7.40466493,135.05,135.02,18.34513786]
[1744912977177,7.40466493,135.05,135.01,18.34513786]
[1744912977398,25.91632727,135.05,135.01,18.34513786]
[1744912977579,7.40466493,135.05,135.02,18.34513786]
[1744912977900,25.74980279,135.05,135.0,18.34513786]
[1744912978083,18.34513786,135.04,134.99,67.99593786]
[1744912978404,25.91632727,135.05,135.01,18.34513786]
[1744912978582,44.26146513,135.05,135.01,18.34513786]
[1744912978786,44.26146513,135.05,135.04,18.34513786]
[1744912978787,7.40466493,135.05,135.04,18.34513786]
[1744912979102,7.40439542,135.06,135.04,18.34513786]
[1744912979596,44.25570937,135.08,135.04,18.34513786]
[1744912980489,25.91057151,135.08,135.04,18.34513786]
[1744912980795,25.91057151,135.08,135.03,0.28432314]
[1744912981092,18.34513786,135.07,135.03,18.34513786]
[1744912981294,44.25570937,135.08,135.02,0.28432314]
[1744912981475,18.34513786,135.06,135.01,82.9]
[1744912981679,18.34513786,135.05,135.01,82.9]
[1744912981876,18.34513786,135.04,135.0,18.34513786]
[1744912982077,18.34513786,135.04,134.99,144.28513786]
[1744912982388,18.34513786,135.03,134.99,99.94]
[1744912982590,88.92567367,135.08,135.02,18.34513786]
[1744912982796,18.34513786,135.06,135.01,18.34513786]
[1744912982979,18.34513786,135.05,135.01,18.34513786]
[1744912983182,88.92567367,135.08,135.0,0.28432314]
[1744912983183,18.34513786,135.04,135.0,0.28432314]
[1744912983379,18.34513786,135.03,134.99,118.28513786]
[1744912983584,7.40631017,135.02,134.99,82.9]
[1744912983885,44.26722347,135.02,134.97,19.85963786]
[1744912984090,25.92208561,135.02,134.98,18.34513786]
[1744912984402,7.40631017,135.02,134.97,1.5145]
[1744912984582,7.40631017,135.02,134.99,18.34513786]
[1744912985294,7.40631017,135.02,135.0,18.34513786]
[1744912985484,7.40631017,135.02,135.01,18.34513786]
[1744912985800,24.8589,135.09,135.02,0.28432314]
[1744912985801,18.51018167,135.07,135.02,0.28432314]
[1744912985998,7.8189,135.09,135.02,83.18432314]
[1744912985999,7.40302043,135.08,135.02,83.18432314]
[1744912986392,7.40302043,135.08,135.05,18.34513786]
[1744912986783,7.40302043,135.08,135.04,18.34513786]
[1744912987283,25.74815829,135.08,135.04,18.34513786]
[1744912987886,18.34513786,135.07,135.02,83.18432314]
[1744912988088,18.34513786,135.07,135.03,18.34513786]
[1744912988380,44.25570937,135.08,135.03,18.34513786]
[1744912988585,7.40302043,135.08,135.04,18.34513786]
[1744912988793,44.25570937,135.08,135.03,18.34513786]
[1744912989012,18.34513786,135.05,135.01,35.38513786]
[1744912989397,18.34513786,135.06,135.02,18.34513786]
[1744912989712,25.91057151,135.08,135.0,82.9]
[1744912989713,18.34513786,135.05,135.0,82.9]
[1744912989915,7.40521327,135.04,135.0,82.9]
[1744912990108,7.40521327,135.04,135.01,18.34513786]
[1744912990888,7.40521327,135.04,135.0,82.9]
[1744912991089,7.40521327,135.04,135.01,18.34513786]
[1744912991595,7.4048918,135.05,135.03,18.34513786]
[1744912991906,7.40356852,135.07,135.04,18.34513786]
[1744912992905,25.74870638,135.07,135.03,18.34513786]
[1744912993112,25.74870638,135.07,135.02,18.34513786]
[1744912994009,25.74815829,135.08,135.03,18.34513786]
[1744912994505,44.25570937,135.08,135.03,18.34513786]
[1744912994912,18.34513786,135.07,135.03,18.34513786]
[1744912995912,44.25570937,135.08,135.03,18.34513786]
[1744912996099,18.34513786,135.06,135.02,18.34513786]
[1744912996299,18.34513786,135.07,135.03,18.34513786]
[1744912997720,18.34513786,135.07,135.02,18.34513786]
[1744912997918,7.40521327,135.04,135.01,82.9]
[1744912998233,18.34513786,135.02,134.97,101.24513786]
[1744912998400,18.34513786,135.03,134.98,18.34513786]
[1744912998921,18.34513786,135.02,134.98,18.34513786]
[1744912999224,18.34513786,135.02,134.97,82.9]
[1744912999512,18.34513786,135.02,134.98,18.34513786]
[1744912999513,26.0,134.99,134.98,18.34513786]
[1744912999722,26.0,134.99,134.97,18.34513786]
[1744913000096,33.40813419,134.99,134.97,18.34513786]
[1744913000395,7.40813419,134.99,134.97,18.34513786]
[1744913000618,7.40685875,135.01,134.97,18.34513786]
[1744913000787,7.40685875,135.01,134.98,18.34513786]
[1744913001290,33.40657904,135.02,134.99,18.34513786]
[1744913001499,7.40601586,135.03,135.0,18.34513786]
[1744913001691,7.40545028,135.04,135.02,18.34513786]
[1744913001908,7.40545028,135.04,135.01,18.34513786]
[1744913002092,7.40466493,135.05,135.01,18.34513786]
[1744913002419,7.40466493,135.05,135.02,18.34513786]
[1744913002594,7.40439103,135.06,135.02,18.34513786]
[1744913004108,7.40439103,135.06,135.04,18.34513786]
[1744913004503,7.40302043,135.08,135.04,18.34513786]
[1744913004901,25.74815829,135.08,135.03,18.34513786]
[1744913005401,25.74815829,135.08,135.04,18.34513786]
[1744913005602,7.40302043,135.08,135.06,18.34513786]
[1744913006210,7.40247242,135.09,135.06,18.34513786]
[1744913006427,7.40247242,135.09,135.05,18.34513786]
[1744913006804,7.40247242,135.09,135.07,18.34513786]
[1744913008130,25.96916127,135.11,135.07,18.34513786]
[1744913008303,44.31429913,135.11,135.07,18.34513786]
[1744913008824,25.96916127,135.11,135.07,18.34513786]
[1744913009517,25.96916127,135.11,135.08,18.34513786]
[1744913009719,44.31429913,135.11,135.05,82.9]
[1744913010011,44.31429913,135.11,135.06,18.34513786]
[1744913011121,44.31429913,135.11,135.07,18.34513786]
[1744913011308,25.96916127,135.11,135.08,18.34513786]
[1744913011920,25.96916127,135.11,135.07,18.34513786]
[1744913013522,44.31429913,135.11,135.07,18.34513786]
[1744913017319,44.31429913,135.11,135.05,82.9]
[1744913017526,44.31429913,135.11,135.07,18.34513786]
[1744913017824,25.96916127,135.11,135.07,18.34513786]
[1744913018022,0.063,135.11,135.1,18.34513786]
[1744913018409,7.46437665,135.11,135.1,18.34513786]
[1744913018609,0.063,135.11,135.1,18.34513786]
[1744913018814,7.46437665,135.11,135.1,18.34513786]
[1744913019217,0.063,135.11,135.1,18.34513786]
[1744913020123,0.063,135.11,135.09,18.34513786]
[1744913020317,0.063,135.11,135.07,127.24513786]
[1744913020522,0.063,135.11,135.07,101.24513786]
[1744913021341,44.31295615,135.11,135.07,18.34513786]
[1744913021521,18.34513786,135.1,135.06,17.42]
[1744913021827,18.34513786,135.1,135.05,101.24513786]
[1744913022410,18.34513786,135.1,135.06,18.34513786]
[1744913022729,18.34513786,135.09,135.05,101.24513786]
[1744913023649,7.40247242,135.09,135.05,101.24513786]
[1744913023934,7.40247242,135.09,135.06,18.34513786]
[1744913025435,7.40247242,135.09,135.05,101.24513786]
[1744913027838,25.90865348,135.09,135.06,18.34513786]
[1744913028141,18.34513786,135.07,135.03,18.34513786]
[1744913028341,27.43985348,135.09,135.02,16.84]
[1744913028342,18.34513786,135.05,135.02,16.84]
[1744913028516,18.34513786,135.04,135.0,101.24513786]
[1744913028925,51.91248982,135.07,135.01,18.34513786]
[1744913029136,25.91248982,135.07,135.03,18.34513786]
[1744913029443,25.91248982,135.07,135.04,18.34513786]
[1744913030022,7.40356852,135.07,135.05,18.34513786]
[1744913030941,7.4019245,135.1,135.06,18.34513786]
[1744913031165,7.4019245,135.1,135.09,18.34513786]
[1744913032239,0.063,135.11,135.08,18.34513786]
[1744913032425,0.063,135.11,135.07,18.34513786]
[1744913032832,0.063,135.11,135.08,18.34513786]
[1744913033133,0.063,135.11,135.07,18.34513786]
[1744913033634,18.40813786,135.11,135.06,82.9]
[1744913033836,18.40813786,135.11,135.06,101.24513786]
[1744913034224,25.90673575,135.1,135.06,101.24513786]
[1744913035044,44.25187361,135.1,135.06,101.24513786]
[1744913035745,44.25187361,135.1,135.06,82.9]
[1744913035932,44.25187361,135.1,135.06,101.24513786]
[1744913036547,25.90673575,135.1,135.06,101.24513786]
[1744913036852,25.90673575,135.1,135.07,18.34513786]
[1744913037347,44.25187361,135.1,135.05,18.34513786]
[1744913040838,18.34513786,135.09,135.05,18.34513786]
[1744913041034,18.34513786,135.07,135.03,101.24513786]
[1744913041239,18.34513786,135.07,135.03,18.34513786]
[1744913041442,18.34513786,135.08,135.03,18.34513786]
[1744913041643,25.91248982,135.07,135.03,18.34513786]
[1744913041838,25.91248982,135.07,135.04,18.34513786]
[1744913042039,25.91248982,135.07,135.02,26.0]
[1744913042040,7.40356852,135.07,135.06,18.34513786]
[1744913042835,7.40247242,135.09,135.06,18.34513786]
[1744913043043,7.40247242,135.09,135.07,18.34513786]
[1744913043237,7.40247242,135.09,135.08,18.34513786]
[1744913043441,7.4021583,135.1,135.08,18.34513786]
[1744913043841,0.063,135.11,135.08,18.34513786]
[1744913044449,0.063,135.11,135.09,18.34513786]
[1744913044951,0.063,135.11,135.1,18.34513786]
[1744913045149,0.063,135.11,135.1,18.629461]
[1744913046531,0.063,135.11,135.1,55.76640929]
[1744913047056,0.063,135.11,135.1,0.28432314]
[1744913047261,0.063,135.11,135.1,18.34513786]
[1744913047562,0.063,135.11,135.09,101.24513786]
[1744913047771,0.063,135.11,135.1,18.34513786]
[1744913049264,0.063,135.11,135.1,101.529461]
[1744913049765,0.063,135.11,135.1,109.07354707]
[1744913049970,0.063,135.11,135.1,146.06833379]
[1744913050468,0.063,135.11,135.1,172.06833379]
[1744913050967,0.063,135.11,135.1,146.06833379]
[1744913051776,0.063,135.11,135.1,162.70833379]
[1744913053054,0.063,135.14,135.13,26.0]
[1744913053364,0.063,135.14,135.13,127.38729943]
[1744913054580,0.063,135.14,135.13,173.72155264]
[1744913055878,0.063,135.16,135.15,103.26348471]
[1744913056049,0.063,135.16,135.15,101.60862257]
[1744913057078,0.063,135.16,135.15,120.25827143]
[1744913057376,0.063,135.16,135.15,140.25827143]
[1744913057581,0.063,135.19,135.16,0.42648471]
[1744913057781,0.063,135.19,135.18,70.81881544]
[1744913057949,0.063,135.2,135.19,18.933972]
[1744913058149,0.063,135.21,135.19,156.87827143]
[1744913058478,0.063,135.21,135.2,63.27910986]
[1744913058976,0.063,135.21,135.2,44.77162257]
[1744913059381,0.063,135.21,135.2,82.837]
[1744913059569,0.063,135.21,135.19,16.62]
[1744913059570,18.40813786,135.21,135.17,127.18213786]
[1744913059775,0.063,135.21,135.17,108.837]
[1744913060080,0.063,135.21,135.17,127.18213786]
[1744913060275,18.34513786,135.2,135.15,117.80213786]
[1744913060480,18.34513786,135.19,135.15,117.80213786]
[1744913060690,18.34513786,135.2,135.15,101.18213786]
[1744913061201,7.39699681,135.19,135.15,101.18213786]
[1744913061485,7.39699681,135.19,135.16,18.34513786]
[1744913061865,44.23462671,135.19,135.12,99.59916157]
[1744913062077,18.34513786,135.18,135.13,18.34513786]
[1744913062381,18.34513786,135.18,135.14,18.34513786]
[1744913062558,7.39699681,135.19,135.16,18.34513786]
[1744913062891,7.39699681,135.19,135.15,18.34513786]
[1744913063183,7.39699681,135.19,135.15,29.39805908]
[1744913063384,7.39670511,135.2,135.18,29.39805908]
[1744913063784,0.063,135.21,135.19,29.39805908]
[1744913063954,0.063,135.21,135.2,29.39805908]
[1744913065655,0.063,135.21,135.2,29.68238222]
[1744913065873,0.063,135.21,135.2,37.22099349]
[1744913066073,0.063,135.21,135.2,164.70764235]
[1744913066284,0.063,135.21,135.2,138.70764235]
[1744913066459,0.063,135.22,135.21,44.933972]
[1744913066668,0.063,135.22,135.21,55.82454379]
[1744913066865,0.063,135.22,135.21,55.39805908]
[1744913067160,0.063,135.22,135.21,26.0]
[1744913067981,0.063,135.22,135.21,55.39805908]
[1744913068568,0.063,135.22,135.21,55.68238222]
[1744913070378,0.063,135.22,135.21,29.68238222]